fUSD/lending_fUSD_20250302
["ID","MTS","AMOUNT","RATE_DAILY","PERIOD"]
[355172129,1740943861179,-463.32785092,0.00025205,2]
[355172131,1740943861190,-500.0,0.00025205,2]
[355172133,1740943861199,-500.0,0.00025205,2]
[355172134,1740943861208,-500.0,0.00025205,2]
[355172136,1740943861218,-1435.99,0.00025205,2]
[355172138,1740943861228,-500.0,0.00025205,2]
[355172157,1740943861237,-436.49,0.00025205,2]
[355172163,1740943861449,-6411.85,0.00025205,2]
[355172165,1740943861460,-500.0,0.00025205,2]
[355172167,1740943861469,-500.0,0.00025205,2]
[355172169,1740943861479,-500.0,0.00025205,2]
[355172171,1740943861489,-500.0,0.00025205,2]
[355172173,1740943861499,-500.0,0.00025205,2]
[355172175,1740943861509,-1039.69,0.00025205,2]
[355172177,1740943861519,-1173.46897,0.00025205,7]
[355172179,1740943861531,-500.0,0.00025205,2]
[355172181,1740943861541,-1173.468963,0.00025205,7]
[355172183,1740943861550,-500.0,0.00025205,2]
[355172185,1740943861560,-819.1,0.00025205,2]
[355172187,1740943861570,-500.0,0.00025205,2]
[355172189,1740943861579,-500.0,0.00025205,2]
[355172191,1740943861590,-500.0,0.00025205,2]
[355172193,1740943861599,-500.0,0.00025205,2]
[355172195,1740943861609,-889.51,0.00025205,2]
[355172197,1740943861620,-1454.29,0.00025205,2]
[355172199,1740943861630,-2697.14,0.00025205,2]
[355172201,1740943861639,-1113.19,0.00025205,2]
[355172203,1740943861649,-500.0,0.00025205,2]
[355172205,1740943861659,-541.12,0.00025205,2]
[355172207,1740943861669,-1050.18,0.00025205,2]
[355172209,1740943861678,-500.0,0.00025205,2]
[355172210,1740943861688,-1814.48,0.00025205,2]
[355172212,1740943861698,-548.89,0.00025205,2]
[355172214,1740943861707,-500.0,0.00025205,2]
[355172216,1740943861717,-500.0,0.00025205,2]
[355172218,1740943861727,-1000.0,0.00025205,2]
[355172220,1740943861737,-1228.01,0.00025205,2]
[355172223,1740943861747,-528.5,0.00025205,2]
[355172225,1740943861756,-539.9,0.00025205,2]
[355172227,1740943861767,-500.0,0.00025205,2]
[355172229,1740943861777,-500.0,0.00025205,2]
[355172231,1740943861787,-540.36,0.00025205,2]
[355172233,1740943861797,-610.68,0.00025205,2]
[355172235,1740943861807,-500.0,0.00025205,2]
[355172237,1740943861816,-500.0,0.00025205,2]
[355172239,1740943861826,-636.81,0.00025205,2]
[355172241,1740943861835,-500.0,0.00025205,2]
[355172242,1740943861845,-785.35,0.00025205,2]
[355172244,1740943861855,-1133.26,0.00025205,2]
[355172246,1740943861865,-500.0,0.00025205,2]
[355172249,1740943861875,-1458.58,0.00025205,2]
[355172251,1740943861885,-581.88,0.00025205,2]
[355172252,1740943861894,-500.0,0.00025205,2]
[355172254,1740943861904,-907.66,0.00025205,2]
[355172256,1740943861913,-500.0,0.00025205,2]
[355172258,1740943861923,-1024.84,0.00025205,2]
[355172260,1740943861933,-867.23,0.00025205,2]
[355172262,1740943861943,-500.0,0.00025205,2]
[355172264,1740943861952,-500.0,0.00025205,2]
[355172266,1740943861962,-500.0,0.00025205,2]
[355172268,1740943861972,-500.0,0.00025205,2]
[355172270,1740943861982,-500.0,0.00025205,2]
[355172272,1740943861991,-908.11,0.00025205,2]
[355172274,1740943862001,-500.0,0.00025205,2]
[355172277,1740943862012,-746.51,0.00025205,2]
[355172279,1740943862023,-500.0,0.00025205,2]
[355172281,1740943862038,-500.0,0.00025205,2]
[355172282,1740943862048,-752.29,0.00025205,2]
[355172283,1740943862058,-999.46,0.00025205,2]
[355172284,1740943862068,-500.0,0.00025205,2]
[355172285,1740943862078,-500.0,0.00025205,2]
[355172286,1740943862087,-1143.5,0.00025205,2]
[355172287,1740943862097,-500.0,0.00025205,2]
[355172288,1740943862107,-644.38,0.00025205,2]
[355172289,1740943862117,-500.0,0.00025205,2]
[355172290,1740943862126,-500.0,0.00025205,2]
[355172291,1740943862136,-500.0,0.00025205,2]
[355172292,1740943862152,-500.0,0.00025205,2]
[355172293,1740943862162,-500.0,0.00025205,2]
[355172294,1740943862171,-500.0,0.00025205,2]
[355172295,1740943862182,-1546.35,0.00025205,2]
[355172296,1740943862192,-793.28,0.00025205,2]
[355172298,1740943862202,-500.0,0.00025205,2]
[355172300,1740943862212,-500.0,0.00025205,2]
[355172302,1740943862222,-500.0,0.00025205,2]
[355172304,1740943862232,-537.17,0.00025205,2]
[355172306,1740943862242,-682.73,0.00025205,2]
[355172308,1740943862252,-582.95,0.00025205,2]
[355172310,1740943862263,-500.0,0.00025205,2]
[355172312,1740943862274,-500.0,0.00025205,2]
[355172314,1740943862284,-500.0,0.00025205,2]
[355172316,1740943862293,-1412.58,0.00025205,2]
[355172318,1740943862303,-944.98,0.00025205,2]
[355172320,1740943862313,-500.0,0.00025205,2]
[355172322,1740943862323,-500.0,0.00025205,2]
[355172324,1740943862332,-500.0,0.00025205,2]
[355172326,1740943862342,-500.0,0.00025205,2]
[355172328,1740943862351,-675.32,0.00025205,2]
[355172330,1740943862361,-597.14,0.00025205,2]
[355172332,1740943862371,-588.07,0.00025205,2]
[355172333,1740943862380,-500.0,0.00025205,2]
[355172335,1740943862390,-500.0,0.00025205,2]
[355172337,1740943862400,-500.0,0.00025205,2]
[355172339,1740943862409,-944.06,0.00025205,2]
[355172341,1740943862419,-500.0,0.00025205,2]
[355172343,1740943862429,-577.96,0.00025205,2]
[355172345,1740943862438,-500.0,0.00025205,2]
[355172347,1740943862448,-500.0,0.00025205,2]
[355172349,1740943862458,-562.72,0.00025205,2]
[355172351,1740943862467,-500.0,0.00025205,2]
[355172353,1740943862477,-662.55,0.00025205,2]
[355172355,1740943862487,-383.9029226,0.00025205,2]
[355172357,1740943862496,-500.0,0.00025205,2]
[355172358,1740943862506,-500.0,0.00025205,2]
[355172359,1740943862516,-500.0,0.00025205,2]
[355172360,1740943862526,-212.40212342,0.00025205,2]
[355172361,1740943862536,-606.71,0.00025205,2]
[355172362,1740943862546,-500.0,0.00025205,2]
[355172363,1740943862556,-500.0,0.00025205,2]
[355172364,1740943862565,-516.65,0.00025205,2]
[355172365,1740943862575,-1235.316214,0.00025205,7]
[355172366,1740943862586,-1235.316214,0.00025205,7]
[355172367,1740943862595,-500.0,0.00025205,2]
[355172369,1740943862606,-500.0,0.00025205,2]
[355172371,1740943862616,-500.84,0.00025205,2]
[355172373,1740943862626,-1235.316214,0.00025205,7]
[355172374,1740943862637,-1235.31621,0.00025205,7]
[355172376,1740943862646,-715.6,0.00025205,2]
[355172378,1740943862656,-653.24,0.00025205,2]
[355172380,1740943862665,-500.0,0.00025205,2]
[355172382,1740943862675,-500.0,0.00025205,2]
[355172384,1740943862685,-722.93,0.00025205,2]
[355172386,1740943862695,-500.0,0.00025205,2]
[355172388,1740943862705,-500.0,0.00025205,2]
[355172390,1740943862714,-1202.36,0.00025205,2]
[355172392,1740943862723,-500.0,0.00025205,2]
[355172394,1740943862733,-500.0,0.00025205,2]
[355172396,1740943862742,-500.0,0.00025205,2]
[355172398,1740943862751,-4669.618854,0.00025205,7]
[355172400,1740943862761,-4669.618854,0.00025205,7]
[355172402,1740943862770,-500.0,0.00025205,2]
[355172404,1740943862782,-500.0,0.00025205,2]
[355172406,1740943862791,-1650.98750652,0.00025205,7]
[355172434,1740943863051,-356.15532581,0.00025205,7]
[355172436,1740943863065,-2662.47602167,0.00025205,7]
[355172438,1740943863076,-4669.618845,0.00025205,7]
[355172440,1740943863087,-439.32809272,0.00025205,2]
[355172442,1740943863097,-207.639318,0.00025205,7]
[355172443,1740943863110,-207.639318,0.00025205,7]
[355172444,1740943863121,-545.15088257,0.00025205,2]
[355172445,1740943863133,-3230.70911743,0.00025205,2]
[355172446,1740943863143,-500.0,0.00025205,2]
[355172447,1740943863153,-500.0,0.00025205,2]
[355172448,1740943863163,-739.02,0.00025205,2]
[355172449,1740943863173,-207.639318,0.00025205,7]
[355172450,1740943863183,-49.48449952,0.00025205,7]
[355172451,1740943863200,-158.15482248,0.00025205,7]
[355172452,1740943863211,-500.0,0.00025205,2]
[355172453,1740943863222,-569.32,0.00025205,2]
[355172454,1740943863232,-385.00311748,0.00025205,2]
[355172455,1740943863244,-114.99688252,0.00025205,2]
[355172456,1740943863257,-500.0,0.00025205,2]
[355172457,1740943863267,-500.0,0.00025205,2]
[355172458,1740943863277,-500.0,0.00025205,2]
[355172459,1740943863287,-1046.76,0.00025205,2]
[355172460,1740943863297,-500.0,0.00025205,2]
[355172461,1740943863308,-500.0,0.00025205,2]
[355172462,1740943863319,-500.0,0.00025205,2]
[355172463,1740943863329,-500.0,0.00025205,2]
[355172464,1740943863340,-177.86,0.00025205,2]
[355172465,1740943863350,-589.18,0.00025205,2]
[355172466,1740943863360,-666.68,0.00025205,2]
[355172467,1740943863370,-500.0,0.00025205,2]
[355172468,1740943863380,-498.42411748,0.00025205,2]
[355172469,1740943863393,-1.57588252,0.00025205,2]
[355172470,1740943863403,-500.0,0.00025205,2]
[355172471,1740943863414,-500.0,0.00025205,2]
[355172472,1740943863424,-500.0,0.00025205,2]
[355172473,1740943863434,-500.0,0.00025205,2]
[355172474,1740943863444,-500.0,0.00025205,2]
[355172475,1740943863453,-679.94,0.00025205,2]
[355172476,1740943863463,-500.0,0.00025205,2]
[355172477,1740943863473,-500.0,0.00025205,2]
[355172478,1740943863484,-500.0,0.00025205,2]
[355172479,1740943863493,-679.32,0.00025205,2]
[355172480,1740943863504,-500.0,0.00025205,2]
[355172481,1740943863514,-500.0,0.00025205,2]
[355172482,1740943863524,-500.0,0.00025205,2]
[355172483,1740943863534,-500.0,0.00025205,2]
[355172484,1740943863544,-940.25,0.00025205,2]
[355172485,1740943863554,-789.14,0.00025205,2]
[355172486,1740943863564,-405.91,0.00025229,2]
[355172487,1740943863574,-500.0,0.00025273,2]
[355172488,1740943863584,-500.94890991,0.00025273,2]
[355172489,1740943863594,-151.0,0.00025355,7]
[355172490,1740943863604,-405.91,0.00025355,2]
[355172491,1740943863613,-3547.34,0.00025478,2]
[355172492,1740943863623,-151.0,0.00025479,7]
[355172493,1740943863633,-596.55,0.00025479,2]
[355172494,1740943863643,-391.683792,0.00025479,2]
[355172495,1740943863653,-250.67,0.00025479,2]
[355172496,1740943863662,-547.83,0.00025479,2]
[355172497,1740943863672,-191.324349,0.00025479,2]
[355172498,1740943863682,-500.0,0.00025479,2]
[355172499,1740943863692,-500.0,0.00025479,2]
[355172500,1740943863702,-358.74570981,0.00025479,2]
[355172501,1740943863715,-141.25429019,0.00025479,2]
[355172502,1740943863724,-500.0,0.00025479,2]
[355172503,1740943863734,-500.0,0.00025479,2]
[355172504,1740943863744,-500.0,0.00025479,2]
[355172505,1740943863754,-500.0,0.00025479,2]
[355172506,1740943863764,-534.82993151,0.00025479,2]
[355172507,1740943863774,-357.23,0.00025479,2]
[355172508,1740943863784,-500.0,0.00025479,2]
[355172509,1740943863793,-500.0,0.00025479,2]
[355172510,1740943863803,-500.0,0.00025479,2]
[355172511,1740943863813,-500.0,0.00025479,2]
[355172512,1740943863824,-500.0,0.00025479,2]
[355172513,1740943863833,-500.0,0.00025479,2]
[355172514,1740943863843,-500.0,0.00025479,2]
[355172515,1740943863852,-500.0,0.00025479,2]
[355172516,1740943863861,-500.0,0.00025479,2]
[355172517,1740943863871,-500.0,0.00025479,2]
[355172518,1740943863880,-500.0,0.00025479,2]
[355172519,1740943863954,-500.0,0.00025479,2]
[355172520,1740943863964,-500.0,0.00025479,2]
[355172521,1740943863973,-500.0,0.00025479,2]
[355172522,1740943863983,-500.0,0.00025479,2]
[355172523,1740943863993,-500.0,0.00025479,2]
[355172524,1740943864003,-500.0,0.00025479,2]
[355172525,1740943864012,-500.0,0.00025479,2]
[355172526,1740943864023,-500.0,0.00025479,2]
[355172527,1740943864035,-500.0,0.00025479,2]
[355172528,1740943864043,-500.0,0.00025479,2]
[355172529,1740943864053,-523.21,0.00025479,2]
[355172530,1740943864062,-500.0,0.00025479,2]
[355172531,1740943864072,-500.0,0.00025479,2]
[355172532,1740943864082,-337.0506277,0.00025479,2]
[355172533,1740943864091,-500.0,0.00025479,2]
[355172534,1740943864102,-500.0,0.00025479,2]
[355172535,1740943864111,-500.0,0.00025479,2]
[355172536,1740943864120,-527.27,0.00025479,2]
[355172537,1740943864129,-491.74380736,0.00025479,2]
[355172538,1740943864146,-8.25619264,0.00025479,2]
[355172539,1740943864156,-500.0,0.00025479,2]
[355172540,1740943864166,-500.0,0.00025479,2]
[355172541,1740943864175,-500.0,0.00025479,2]
[355172542,1740943864185,-608.15310917,0.00025479,2]
[355172543,1740943864194,-500.0,0.00025479,2]
[355172544,1740943864203,-500.0,0.00025479,2]
[355172545,1740943864212,-420.4012779,0.00025479,2]
[355172546,1740943864222,-500.0,0.00025479,2]
[355172547,1740943864232,-500.0,0.00025479,2]
[355172548,1740943864242,-500.0,0.00025479,2]
[355172549,1740943864251,-500.0,0.00025479,2]
[355172550,1740943864260,-500.0,0.00025479,2]
[355172551,1740943864270,-500.0,0.00025479,2]
[355172552,1740943864280,-500.0,0.00025479,2]
[355172553,1740943864290,-500.0,0.00025479,2]
[355172554,1740943864300,-500.0,0.00025479,2]
[355172555,1740943864309,-500.0,0.00025479,2]
[355172556,1740943864319,-500.0,0.00025479,2]
[355172557,1740943864328,-269.18942029,0.00025479,2]
[355172558,1740943864950,-151.0,0.00023624,7]
[355172559,1740943864960,-323.61701,0.00023624,7]
[355172560,1740943864969,-552.708,0.0002406,2]
[355172561,1740943864980,-249.034988,0.0002406,7]
[355172562,1740943864990,-249.034988,0.00024657,7]
[355172563,1740943864999,-323.61701,0.00024657,7]
[355172564,1740943865009,-249.034988,0.00024657,7]
[355172565,1740943865020,-323.61701,0.00024657,7]
[355172566,1740943865033,-567.21406623,0.00024657,2]
[355172567,1740943865041,-323.61701,0.00024657,7]
[355172568,1740943865051,-103.44653749,0.00024657,7]
[355172569,1740943865063,-220.17047251,0.00024657,7]
[355172570,1740943865072,-323.61701,0.00024657,7]
[355172571,1740943865082,-249.034988,0.00024657,7]
[355172572,1740943865091,-249.034988,0.00024657,7]
[355172573,1740943865100,-323.61701,0.00024657,7]
[355172574,1740943865110,-249.034988,0.00024657,7]
[355172575,1740943865119,-773.69,0.00024657,2]
[355172576,1740943865128,-323.61701,0.00024657,7]
[355172577,1740943865138,-249.034988,0.00024657,7]
[355172578,1740943865147,-323.61701,0.00024755,7]
[355172579,1740943865157,-323.61701,0.00024755,7]
[355172580,1740943865166,-249.034988,0.00024931,7]
[355172581,1740943865175,-323.61701,0.00024931,7]
[355172582,1740943865185,-249.034988,0.00024931,7]
[355172583,1740943865194,-323.61701,0.00024931,7]
[355172584,1740943865203,-249.034988,0.00024931,7]
[355172585,1740943865213,-773.69,0.00024931,2]
[355172586,1740943865223,-249.034988,0.00024931,7]
[355172587,1740943865231,-323.61701,0.00024931,7]
[355172588,1740943865240,-249.034988,0.00024931,7]
[355172589,1740943865249,-323.61701,0.00024931,7]
[355172590,1740943865260,-500.0,0.00025205,2]
[355172591,1740943865269,-323.61701,0.00025205,7]
[355172592,1740943865278,-249.034988,0.00025205,7]
[355172593,1740943865287,-323.61701,0.00025205,7]
[355172594,1740943865296,-249.034988,0.00025205,7]
[355172595,1740943865305,-773.69,0.00025205,2]
[355172596,1740943865314,-230.81057971,0.00025479,2]
[355172597,1740943865324,-500.0,0.00025479,2]
[355172598,1740943865334,-632.1587373,0.00025479,2]
[355172599,1740943865343,-500.0,0.00025479,2]
[355172600,1740943865352,-500.0,0.00025479,2]
[355172601,1740943865361,-500.0,0.00025479,2]
[355172602,1740943865370,-22.09551457,0.00025479,2]
[355172603,1740943865382,-477.90448543,0.00025479,2]
[355172604,1740943865391,-500.0,0.00025479,2]
[355172605,1740943865400,-430.47522541,0.00025479,2]
[355172606,1740943865409,-500.0,0.00025479,2]
[355172607,1740943865418,-500.0,0.00025479,2]
[355172608,1740943865427,-500.0,0.00025479,2]
[355172609,1740943865436,-205.5266008,0.00025479,2]
[355172610,1740943865445,-500.0,0.00025479,2]
[355172611,1740943865454,-500.0,0.00025479,2]
[355172612,1740943865463,-500.0,0.00025479,2]
[355172613,1740943865472,-500.0,0.00025479,2]
[355172614,1740943865481,-500.0,0.00025479,2]
[355172615,1740943865490,-500.0,0.00025479,2]
[355172616,1740943865499,-500.0,0.00025479,2]
[355172617,1740943865508,-184.0478458,0.00025479,2]
[355172618,1740943865518,-500.0,0.00025479,2]
[355172619,1740943865527,-500.0,0.00025479,2]
[355172620,1740943865548,-500.0,0.00025479,2]
[355172621,1740943865560,-500.0,0.00025479,2]
[355172622,1740943865570,-500.0,0.00025479,2]
[355172623,1740943865579,-500.0,0.00025479,2]
[355172624,1740943865590,-500.0,0.00025479,2]
[355172625,1740943865600,-500.0,0.00025479,2]
[355172626,1740943865610,-619.01,0.00025479,2]
[355172627,1740943865619,-500.0,0.00025479,2]
[355172628,1740943865629,-500.0,0.00025479,2]
[355172629,1740943865639,-500.0,0.00025479,2]
[355172630,1740943865649,-161.01289345,0.00025479,2]
[355172631,1740943865660,-429.21909656,0.00025479,2]
[355172632,1740943865670,-500.0,0.00025479,2]
[355172633,1740943865680,-500.0,0.00025479,2]
[355172634,1740943865690,-500.0,0.00025479,2]
[355172635,1740943865700,-500.0,0.00025479,2]
[355172636,1740943865709,-500.0,0.00025479,2]
[355172637,1740943865719,-500.0,0.00025479,2]
[355172638,1740943865728,-252.23,0.00025479,2]
[355172639,1740943865738,-598.68,0.00025479,2]
[355172640,1740943865748,-572.34,0.00025479,2]
[355172641,1740943865757,-500.0,0.00025479,2]
[355172642,1740943865767,-494.3,0.00025479,2]
[355172643,1740943865776,-500.48,0.00025479,2]
[355172644,1740943865787,-500.0,0.00025479,2]
[355172645,1740943865798,-500.0,0.00025479,2]
[355172646,1740943865807,-500.0,0.00025479,2]
[355172647,1740943865817,-525.69,0.00025479,2]
[355172648,1740943865827,-510.04510777,0.00025479,2]
[355172649,1740943865837,-354.6,0.00025479,2]
[355172650,1740943865846,-500.0,0.00025479,2]
[355172651,1740943865856,-500.0,0.00025479,2]
[355172652,1740943865866,-500.0,0.00025479,2]
[355172653,1740943865876,-500.0,0.00025479,2]
[355172654,1740943865886,-621.00260602,0.00025479,2]
[355172655,1740943865895,-513.42,0.00025479,2]
[355172656,1740943865905,-500.0,0.00025479,2]
[355172657,1740943865915,-500.0,0.00025479,2]
[355172658,1740943865925,-646.85,0.00025479,2]
[355172659,1740943865935,-500.0,0.00025479,2]
[355172660,1740943865945,-500.0,0.00025479,2]
[355172661,1740943865955,-333.80304811,0.00025479,2]
[355172662,1740943865964,-500.0,0.00025479,2]
[355172663,1740943865974,-447.66,0.00025479,2]
[355172664,1740943865984,-1039.69,0.00025479,2]
[355172665,1740943865994,-500.0,0.00025479,2]
[355172666,1740943866004,-819.1,0.00025479,2]
[355172667,1740943866013,-500.0,0.00025479,2]
[355172668,1740943866031,-500.0,0.00025479,2]
[355172669,1740943866043,-185.1414361,0.00025479,2]
[355172670,1740943866053,-500.0,0.00025479,2]
[355172671,1740943866070,-889.51,0.00025479,2]
[355172672,1740943866080,-1454.29,0.00025479,2]
[355172673,1740943866091,-2697.14,0.00025479,2]
[355172674,1740943866100,-1113.19,0.00025479,2]
[355172675,1740943866110,-500.0,0.00025479,2]
[355172676,1740943866120,-541.12,0.00025479,2]
[355172677,1740943866131,-1050.18,0.00025479,2]
[355172678,1740943866141,-500.0,0.00025479,2]
[355172679,1740943866151,-910.20290822,0.00025479,2]
[355172680,1740943866170,-249.034988,0.00024931,7]
[355172681,1740943866180,-32.965012,0.00025479,2]
[355172682,1740943866195,-871.31207978,0.00025479,2]
[355172683,1740943866205,-548.89,0.00025479,2]
[355172684,1740943866215,-500.0,0.00025479,2]
[355172685,1740943866225,-500.0,0.00025479,2]
[355172686,1740943866234,-1228.01,0.00025479,2]
[355172687,1740943866244,-528.5,0.00025479,2]
[355172688,1740943866254,-500.0,0.00025479,2]
[355172689,1740943866264,-341.04454487,0.00025479,2]
[355172690,1740943866276,-158.95545513,0.00025479,2]
[355172691,1740943866290,-540.36,0.00025479,2]
[355172692,1740943866302,-106.49246515,0.00025479,2]
[355172693,1740943866315,-487.70753485,0.00025479,2]
[355172694,1740943866326,-500.0,0.00025479,2]
[355172695,1740943866336,-636.81,0.00025479,2]
[355172696,1740943866346,-500.0,0.00025479,2]
[355172697,1740943866356,-785.35,0.00025479,2]
[355172698,1740943866366,-1133.26,0.00025479,2]
[355172699,1740943866375,-500.0,0.00025479,2]
[355172700,1740943866385,-1458.58,0.00025479,2]
[355172701,1740943866395,-581.88,0.00025479,2]
[355172702,1740943866404,-500.0,0.00025479,2]
[355172703,1740943866414,-907.66,0.00025479,2]
[355172704,1740943866424,-500.0,0.00025479,2]
[355172705,1740943866434,-847.05246515,0.00025479,2]
[355172706,1740943866446,-177.78753485,0.00025479,2]
[355172707,1740943866456,-867.23,0.00025479,2]
[355172708,1740943866466,-500.0,0.00025479,2]
[355172709,1740943866476,-500.0,0.00025479,2]
[355172710,1740943866485,-500.0,0.00025479,2]
[355172711,1740943866495,-500.0,0.00025479,2]
[355172712,1740943866506,-908.11,0.00025479,2]
[355172713,1740943866516,-746.51,0.00025479,2]
[355172714,1740943866526,-500.0,0.00025479,2]
[355172715,1740943866539,-460.36246515,0.00025479,2]
[355172716,1740943866582,-39.63753485,0.00025479,2]
[355172717,1740943866592,-500.0,0.00025479,2]
[355172718,1740943866603,-752.29,0.00025479,2]
[355172719,1740943866617,-999.46,0.00025479,2]
[355172720,1740943866628,-500.0,0.00025479,2]
[355172721,1740943866638,-544.87,0.00025479,2]
[355172722,1740943866648,-1143.5,0.00025479,2]
[355172723,1740943866658,-500.0,0.00025479,2]
[355172724,1740943866668,-644.38,0.00025479,2]
[355172725,1740943866678,-92.00590398,0.00025479,2]
[355172726,1740943866714,-407.99409602,0.00025479,2]
[355172727,1740943866724,-500.0,0.00025479,2]
[355172728,1740943866734,-500.0,0.00025479,2]
[355172729,1740943866745,-500.0,0.00025479,2]
[355172730,1740943866754,-500.0,0.00025479,2]
[355172731,1740943866764,-500.0,0.00025479,2]
[355172732,1740943866773,-1546.35,0.00025479,2]
[355172733,1740943866784,-793.28,0.00025479,2]
[355172734,1740943866794,-500.0,0.00025479,2]
[355172735,1740943866804,-508.01,0.00025479,2]
[355172736,1740943866814,-500.0,0.00025479,2]
[355172737,1740943866824,-682.73,0.00025479,2]
[355172738,1740943866834,-582.95,0.00025479,2]
[355172739,1740943866844,-500.0,0.00025479,2]
[355172740,1740943866854,-500.0,0.00025479,2]
[355172741,1740943866863,-373.13157392,0.00025479,2]
[355172742,1740943867103,-642.0,0.0002406,2]
[355172743,1740943867113,-22959.55568701,0.00024657,2]
[355172744,1740943867123,-249.034988,0.00025205,7]
[355172745,1740943867134,-249.034988,0.00025205,7]
[355172746,1740943867149,-323.61701,0.00025205,7]
[355172747,1740943867160,-323.617007,0.00025205,7]
[355172748,1740943867170,-115.25842608,0.00025479,2]
[355172749,1740943867181,-1412.58,0.00025479,2]
[355172750,1740943867191,-944.98,0.00025479,2]
[355172751,1740943867201,-611.65,0.00025479,2]
[355172752,1740943867212,-500.0,0.00025479,2]
[355172753,1740943867222,-500.0,0.00025479,2]
[355172754,1740943867232,-675.32,0.00025479,2]
[355172755,1740943867242,-597.14,0.00025479,2]
[355172756,1740943867251,-588.07,0.00025479,2]
[355172757,1740943867262,-192.87,0.00025479,2]
[355172758,1740943867272,-593.52,0.00025479,2]
[355172759,1740943867283,-500.0,0.00025479,2]
[355172760,1740943867294,-944.06,0.00025479,2]
[355172761,1740943867304,-500.0,0.00025479,2]
[355172762,1740943867314,-577.96,0.00025479,2]
[355172763,1740943867325,-500.0,0.00025479,2]
[355172764,1740943867336,-500.0,0.00025479,2]
[355172765,1740943867346,-562.72,0.00025479,2]
[355172766,1740943867356,-662.55,0.00025479,2]
[355172767,1740943867365,-500.0,0.00025479,2]
[355172768,1740943867375,-421.14,0.00025479,2]
[355172769,1740943867385,-606.71,0.00025479,2]
[355172770,1740943867395,-500.0,0.00025479,2]
[355172771,1740943867405,-500.0,0.00025479,2]
[355172772,1740943867414,-516.65,0.00025479,2]
[355172773,1740943867424,-500.0,0.00025479,2]
[355172774,1740943867433,-500.0,0.00025479,2]
[355172775,1740943867443,-500.84,0.00025479,2]
[355172776,1740943867453,-715.6,0.00025479,2]
[355172777,1740943867462,-653.24,0.00025479,2]
[355172778,1740943867471,-500.0,0.00025479,2]
[355172779,1740943867481,-722.93,0.00025479,2]
[355172780,1740943867490,-500.0,0.00025479,2]
[355172781,1740943867500,-206.74240581,0.00025479,2]
[355172782,1740943867510,-1202.36,0.00025479,2]
[355172783,1740943867520,-500.0,0.00025479,2]
[355172784,1740943867530,-500.0,0.00025479,2]
[355172785,1740943867540,-547.19556765,0.00025479,2]
[355172786,1740943867551,-500.0,0.00025479,2]
[355172787,1740943867561,-500.0,0.00025479,2]
[355172788,1740943867571,-3775.86,0.00025479,2]
[355172789,1740943867582,-500.0,0.00025479,2]
[355172790,1740943867592,-500.0,0.00025479,2]
[355172791,1740943867602,-739.02,0.00025479,2]
[355172792,1740943867614,-500.0,0.00025479,2]
[355172793,1740943867624,-569.32,0.00025479,2]
[355172794,1740943867634,-500.0,0.00025479,2]